bitfinex-derivatives/quotes_ETHF0:USTF0_20251008
["timestamp","ask_amount","ask_price","bid_price","bid_amount"]
[1759922175777,0.327,4504.5,4504.4,0.7648]
[1759922176077,3.70820794,4504.5,4504.4,0.7648]
[1759922177876,3.91880794,4504.5,4504.4,0.7648]
[1759922180480,0.0024619,4504.6,4504.4,0.7648]
[1759922180682,0.0024619,4504.6,4504.5,0.8729]
[1759922180879,0.0944619,4504.6,4504.5,0.8729]
[1759922181383,0.4147619,4504.6,4504.5,0.8729]
[1759922181581,0.6400619,4504.6,4504.5,0.7576]
[1759922183386,0.8614619,4504.6,4504.5,0.4446]
[1759922183887,3.36653671,4504.6,4504.1,41.113]
[1759922184187,0.767,4504.2,4504.1,41.113]
[1759922184978,0.767,4504.2,4503.5,0.1242]
[1759922185181,0.99,4504.1,4504.0,0.5363]
[1759922185383,0.5433,4504.1,4504.0,0.7576]
[1759922185784,0.5456,4504.3,4504.2,0.7576]
[1759922185986,0.7686,4504.3,4504.2,0.7576]
[1759922186384,0.0024619,4504.6,4504.5,0.5599]
[1759922186683,2.88396113,4504.6,4504.5,0.8729]
[1759922186883,3.10696113,4504.6,4504.5,0.8729]
[1759922187085,0.2254619,4504.6,4504.5,0.8729]
[1759922187284,0.0024619,4504.6,4504.5,0.8729]
[1759922187588,0.2254619,4504.6,4504.5,0.8729]
[1759922187787,0.0024619,4504.6,4504.5,0.8729]
[1759922187988,0.2254619,4504.6,4504.5,0.8729]
[1759922188189,0.0024619,4504.6,4504.5,0.8729]
[1759922190794,0.0024619,4504.6,4504.5,41.6729]
[1759922195094,0.3227619,4504.6,4504.5,41.5576]
[1759922195296,0.3227619,4504.6,4504.5,41.2446]
[1759922195595,0.3227619,4504.6,4504.5,0.4446]
[1759922195596,0.7694619,4504.6,4504.5,0.4446]
[1759922196391,0.7694619,4504.6,4504.5,0.7576]
[1759922197097,0.7694619,4504.6,4504.5,0.4446]
[1759922197598,0.7694619,4504.6,4504.5,0.7576]
[1759922198095,0.7694619,4504.6,4504.5,0.4446]
[1759922198901,0.2253,4503.8,4503.7,0.7576]
[1759922199199,0.5456,4503.8,4503.7,0.7576]
[1759922199403,0.1285,4504.5,4503.7,41.5576]
[1759922199601,0.767,4504.4,4504.3,0.2233]
[1759922199898,3.69301045,4504.4,4504.3,0.2233]
[1759922200097,0.3203,4504.3,4503.7,40.8]
[1759922200294,0.5456,4503.8,4503.7,40.8]
[1759922200696,0.5456,4503.8,4503.7,41.113]
[1759922202508,0.87,4503.5,4503.4,0.00203284]
[1759922202707,0.977,4503.5,4503.4,0.00203284]
[1759922202904,3.91063738,4503.5,4503.4,0.00203284]
[1759922203508,8.91063738,4503.5,4502.7,0.3284]
[1759922203706,0.7439,4502.8,4502.7,0.5547]
[1759922204007,0.7439,4502.8,4502.7,0.7647]
[1759922204402,0.9669,4502.8,4502.7,0.4363]
[1759922204602,0.9669,4502.8,4502.7,0.43838068]
[1759922205406,0.9669,4502.8,4502.7,0.76678068]
[1759922205605,0.1261,4503.5,4502.7,0.76678068]
[1759922205805,0.9669,4503.4,4503.3,0.4363]
[1759922206007,3.65681229,4503.4,4503.3,0.7647]
[1759922206207,3.12851229,4503.4,4503.3,0.7647]
[1759922206409,3.69251229,4503.4,4503.3,0.7647]
[1759922207203,3.90841229,4503.4,4503.3,0.7647]
[1759922210509,3.13591229,4503.4,4503.3,0.7647]
[1759922210710,3.91441229,4503.4,4503.3,0.7647]
[1759922210911,3.69851229,4503.4,4503.3,0.7647]
[1759922212515,3.25391229,4503.4,4503.3,0.7647]
[1759922212711,3.47691229,4503.4,4503.3,0.7647]
[1759922213015,3.69851229,4503.4,4503.3,0.7647]
[1759922213709,3.47551229,4503.4,4503.3,0.7647]
[1759922213911,3.69851229,4503.4,4503.3,0.7647]
[1759922214613,3.13591229,4503.4,4503.3,0.7647]
[1759922214808,0.223,4503.4,4503.3,0.7647]
[1759922215315,0.341,4503.8,4503.3,0.7647]
[1759922215516,0.7785,4503.9,4503.8,0.2255]
[1759922215815,3.68376869,4503.9,4503.8,0.2255]
[1759922216115,3.62476869,4503.9,4503.8,0.772]
[1759922216516,3.84776869,4503.9,4503.8,0.772]
[1759922218314,3.62476869,4503.9,4503.8,0.772]
[1759922218515,3.84776869,4503.9,4503.8,0.772]
[1759922220120,3.62476869,4503.9,4503.8,0.772]
[1759922220314,3.84776869,4503.9,4503.8,0.772]
[1759922220515,3.62476869,4503.9,4503.8,0.772]
[1759922220712,0.341,4503.8,4503.7,0.2255]
[1759922221018,3.89597495,4503.8,4503.7,0.2255]
[1759922222218,0.9051,4503.5,4503.4,0.2255]
[1759922222522,1.1281,4503.5,4502.8,0.3277]
[1759922222720,1.1281,4503.5,4503.4,0.4443]
[1759922222913,1.1281,4503.5,4503.4,0.772]
[1759922223224,1.1281,4503.5,4503.4,0.4443]
[1759922224317,0.341,4503.4,4502.9,41.1277]
[1759922224518,0.5626,4503.0,4502.9,0.772]
[1759922224827,1.1281,4503.0,4502.9,0.772]
[1759922225015,1.1281,4503.0,4502.9,0.4443]
[1759922226719,1.1281,4503.0,4502.9,0.772]
[1759922227617,1.0015,4503.0,4502.9,0.772]
[1759922227816,0.7856,4503.0,4502.9,0.772]
[1759922228119,0.564,4503.0,4502.9,0.772]
[1759922228917,0.341,4503.0,4502.9,0.772]
[1759922229111,0.341,4503.9,4503.5,0.3277]
[1759922229317,0.341,4503.9,4503.8,0.772]
[1759922229516,3.6012653,4503.9,4503.8,0.772]
[1759922229716,3.7101653,4503.9,4503.8,0.772]
[1759922229922,3.9331653,4503.9,4503.8,0.772]
[1759922230121,3.7101653,4503.9,4503.8,0.772]
[1759922230323,3.9331653,4503.9,4503.8,0.772]
[1759922230522,3.7101653,4503.9,4503.8,0.772]
[1759922231026,3.9331653,4503.9,4503.8,0.772]
[1759922231625,3.7101653,4503.9,4503.8,0.772]
[1759922231825,3.9331653,4503.9,4503.8,0.772]
[1759922232025,3.7101653,4503.9,4503.8,0.772]
[1759922232226,3.9331653,4503.9,4503.8,0.772]
[1759922233530,3.7101653,4503.9,4503.8,0.772]
[1759922233821,3.9331653,4503.9,4503.8,0.772]
[1759922234526,3.7101653,4503.9,4503.8,0.772]
[1759922234727,3.9331653,4503.9,4503.8,0.772]
[1759922234918,3.9331653,4503.9,4503.1,0.3277]
[1759922235322,0.223,4503.8,4503.1,0.3277]
[1759922235523,0.564,4503.7,4503.1,0.3277]
[1759922235728,0.2216,4503.2,4503.1,0.772]
[1759922236026,1.0015,4503.2,4503.1,0.2255]
[1759922236229,0.7785,4502.9,4502.3,2.31024802]
[1759922236524,0.6572,4502.8,4502.7,0.22978068]
[1759922236723,0.9813,4502.8,4502.7,0.22978068]
[1759922236921,0.9813,4502.8,4502.7,0.45008068]
[1759922237130,0.9813,4502.8,4502.7,0.76768068]
[1759922237431,0.9813,4502.8,4502.7,0.45008068]
[1759922238225,0.9813,4502.8,4502.7,0.22978068]
[1759922239526,0.9813,4502.8,4502.7,0.53998068]
[1759922239829,0.9813,4502.8,4502.7,0.00208068]
[1759922239830,3.81834096,4502.8,4502.7,0.00208068]
[1759922249744,8.81834096,4502.8,4502.7,0.00208068]
[1759922251545,8.81834096,4502.8,4501.4,0.3176]
[1759922251747,3.81834096,4502.8,4501.4,0.3176]
[1759922252648,3.81834096,4502.8,4501.4,0.31935887]
[1759922253443,0.8907,4501.5,4501.4,0.76735887]
[1759922253643,1.1137,4501.5,4501.4,0.76735887]
[1759922254641,1.1137,4501.5,4501.4,0.00175887]
[1759922256749,4.0505031,4501.5,4501.4,0.00175887]
[1759922275269,3.8275031,4501.5,4501.4,0.00175887]
[1759922275469,4.0505031,4501.5,4501.4,0.00175887]
[1759922280268,3.6951031,4501.5,4501.4,0.75755887]
[1759922280579,4.0277031,4501.5,4501.4,0.75755887]
[1759922280779,4.0277031,4501.5,4501.4,0.44695887]
[1759922280979,4.0277031,4501.5,4501.4,0.00175887]
[1759922283276,3.8047031,4501.5,4501.4,0.00175887]
[1759922283670,4.0277031,4501.5,4501.4,0.00175887]
[1759922284072,3.8047031,4501.5,4501.4,0.22395887]
[1759922284284,3.8989031,4501.5,4501.4,0.75755887]
[1759922284782,4.0277031,4501.5,4501.4,0.75755887]
[1759922284982,4.0277031,4501.5,4501.4,0.22395887]
[1759922285182,4.0277031,4501.5,4501.4,0.00175887]
[1759922286985,4.0277031,4501.5,4501.4,0.22395887]
[1759922287687,4.0277031,4501.5,4501.4,0.00175887]
[1759922290188,3.8047031,4501.5,4501.4,0.22395887]
[1759922290390,4.0277031,4501.5,4501.4,0.22395887]
[1759922290589,3.8047031,4501.5,4501.4,0.22395887]
[1759922290789,4.0277031,4501.5,4501.4,0.22395887]
[1759922291493,3.8047031,4501.5,4501.4,0.22395887]
[1759922291796,0.3354,4502.1,4501.5,0.1242]
[1759922291982,0.1324,4502.5,4502.0,0.8722]
[1759922292292,3.62875842,4502.4,4502.3,0.7558]
[1759922292483,0.9734,4502.4,4502.3,0.7558]
[1759922292684,3.83755842,4502.4,4502.3,0.7558]
[1759922292893,3.61455842,4502.4,4502.3,0.7558]
[1759922293092,3.83755842,4502.4,4502.3,0.7558]
[1759922293494,3.27915842,4502.4,4501.7,0.3106]
[1759922293687,0.7504,4501.8,4501.7,0.2222]
[1759922293992,0.9734,4501.8,4501.7,0.2222]
[1759922294493,3.81727087,4501.8,4501.7,0.2222]
[1759922294686,0.5438,4501.5,4501.4,0.53455887]
[1759922294882,1.1022,4501.5,4501.4,0.75755887]
[1759922295595,0.5584,4501.5,4501.4,0.75755887]
[1759922295889,0.3354,4501.8,4501.4,0.75755887]
[1759922296096,0.5584,4501.7,4501.5,0.4348]
[1759922296400,3.41900041,4501.7,4501.6,0.7558]
[1759922296695,3.86200041,4501.7,4501.6,0.2222]
[1759922297297,0.8826,4501.5,4501.4,0.00175887]
[1759922297696,0.8826,4501.5,4501.4,0.20965887]
[1759922298097,0.8826,4501.5,4501.4,0.74055887]
[1759922298689,0.8826,4501.5,4501.4,0.20965887]
[1759922299192,3.72681077,4501.5,4501.4,0.20965887]
[1759922300998,0.8826,4500.5,4500.4,0.2079]
[1759922301193,0.2084,4499.8,4499.7,0.7388]
[1759922301396,0.6916,4499.8,4499.7,0.7388]
[1759922301695,3.84731957,4499.8,4499.7,0.7388]
[1759922302002,3.84997405,4499.8,4499.7,0.74142026]
[1759922302295,3.84997405,4499.8,4499.7,0.42592026]
[1759922303602,3.84997405,4499.8,4499.7,0.21052026]
[1759922310007,3.84997405,4499.8,4498.6,0.3155]
[1759922310206,8.84997405,4499.8,4498.6,0.3155]
[1759922310503,8.52377405,4499.8,4498.6,41.1155]
[1759922310705,0.5346,4498.7,4498.6,41.1155]
[1759922310903,0.7576,4498.7,4498.6,41.1155]
[1759922311099,0.7576,4498.7,4498.6,41.11755385]
[1759922311297,0.7576,4498.7,4498.6,0.52545385]
[1759922311494,0.9776,4498.7,4498.6,0.20995385]
[1759922311695,0.9776,4498.7,4498.6,0.74085385]
[1759922312107,0.3262,4498.9,4498.6,0.42535385]
[1759922312303,0.7546,4499.4,4499.3,0.7388]
[1759922312504,0.8166,4499.4,4499.3,0.2079]
[1759922312802,0.8826,4499.0,4498.9,0.2079]
[1759922313006,1.1056,4499.0,4498.9,0.2079]
[1759922313206,3.92887732,4499.0,4498.6,0.00205385]
[1759922316006,3.70587732,4499.0,4498.6,0.00205385]
[1759922316209,0.7546,4498.7,4498.6,0.20995385]
[1759922316510,3.84242975,4498.7,4498.6,0.00205385]
[1759922317810,3.84242975,4498.7,4498.6,0.20995385]
[1759922319507,3.61942975,4498.7,4498.6,0.20995385]
[1759922319715,3.84242975,4498.7,4498.6,0.74085385]
[1759922319915,3.84242975,4498.7,4498.6,0.42535385]
[1759922320315,3.62242975,4498.7,4498.6,0.74085385]
[1759922320704,3.84242975,4498.7,4498.6,0.74085385]
[1759922321908,3.84242975,4498.7,4498.6,0.00205385]
[1759922322114,3.84242975,4498.7,4498.6,0.21495385]
[1759922322317,3.61942975,4498.7,4498.6,0.74035385]
[1759922322619,0.223,4498.7,4498.6,0.42225385]
[1759922322809,0.223,4498.7,4498.6,0.74035385]
[1759922323008,0.3244,4499.1,4498.6,0.42225385]
[1759922323209,0.049,4499.0,4498.9,0.4202]
[1759922323413,2.89511598,4499.0,4498.9,0.7383]
[1759922323610,0.2096,4499.1,4499.0,0.8664]
[1759922323811,0.4326,4499.1,4499.0,0.8664]
[1759922324117,3.27871598,4499.1,4499.0,0.8664]
[1759922324317,3.28073856,4499.1,4499.0,0.8664]
[1759922325815,3.81473856,4499.1,4499.0,0.8664]
[1759922326011,3.81473856,4499.1,4499.0,0.7383]
[1759922327419,0.743,4498.8,4498.7,0.3271]
[1759922327616,0.966,4498.8,4498.7,0.3271]
[1759922327821,3.85200949,4498.8,4498.7,0.5376]
[1759922328213,3.85200949,4498.8,4498.7,0.3271]
[1759922328613,3.85200949,4498.8,4498.7,0.5376]
[1759922329420,3.85200949,4498.8,4498.7,0.3271]
[1759922330321,3.85200949,4498.8,4498.7,0.5376]
[1759922332228,3.85200949,4498.8,4498.7,0.7579]
[1759922333737,3.54090949,4498.8,4498.7,0.7579]
[1759922334135,2.88600949,4498.8,4498.7,0.7579]
[1759922334435,0.223,4498.8,4498.7,0.7579]
[1759922334839,3.13797926,4498.8,4498.7,0.7579]
[1759922335028,2.91497926,4498.8,4498.7,0.7579]
[1759922335229,3.13797926,4498.8,4498.7,0.7579]
[1759922335429,0.223,4498.8,4498.7,0.7579]
[1759922335629,2.93830624,4498.8,4498.7,0.7579]
[1759922335837,0.223,4498.8,4498.7,5.7579]
[1759922337139,0.223,4498.8,4498.7,46.5579]
[1759922340834,0.00202258,4499.1,4498.7,46.5579]
[1759922340835,0.00202258,4499.1,4499.0,0.8819]
[1759922341636,0.21762258,4499.1,4499.0,0.8819]
[1759922341842,0.43392258,4499.1,4499.0,0.8819]
[1759922342033,0.21762258,4499.1,4499.0,0.8819]
[1759922342941,0.00202258,4499.1,4499.0,0.8819]
[1759922343540,0.05902258,4499.1,4499.0,0.8819]
[1759922345045,0.00202258,4499.1,4499.0,0.8819]
[1759922345545,0.05902258,4499.1,4499.0,0.8819]
[1759922346638,0.00202258,4499.1,4499.0,0.8819]
[1759922347446,0.21762258,4499.1,4499.0,0.8819]
[1759922347739,0.74502258,4499.1,4499.0,0.8819]
[1759922348544,0.43392258,4499.1,4499.0,0.8819]
[1759922348948,0.74502258,4499.1,4498.6,0.00205385]
[1759922349142,3.62961775,4499.1,4498.7,0.3271]
[1759922349338,3.62961775,4499.1,4498.6,0.00205385]
[1759922349542,3.31851775,4499.1,4498.7,0.3271]
[1759922349744,3.31851775,4499.1,4499.0,0.5376]
[1759922350243,3.62961775,4499.1,4499.0,0.5376]
[1759922350549,3.62961775,4499.1,4498.7,0.3271]
[1759922350752,3.62961775,4499.1,4498.6,0.00205385]
[1759922351047,0.3111,4499.0,4498.9,0.2105]
[1759922351248,0.743,4499.0,4498.9,0.5376]
[1759922351450,3.61260166,4499.0,4498.9,0.5376]
[1759922351847,3.61260166,4499.0,4498.9,0.3271]
[1759922352150,3.30150166,4499.0,4498.7,0.3271]
[1759922352343,0.4319,4498.8,4498.6,0.00205385]
[1759922352544,0.4319,4498.8,4498.7,0.7579]
[1759922354148,0.21762258,4499.1,4499.0,0.124]
[1759922354352,0.26562258,4499.1,4499.0,0.8819]
[1759922354554,3.69292026,4499.1,4499.0,0.3271]
[1759922355054,3.64492026,4499.1,4499.0,0.3271]
[1759922355245,3.86792026,4499.1,4499.0,0.5376]
[1759922355440,3.86792026,4499.1,4499.0,0.7579]
[1759922357852,3.55682026,4499.1,4499.0,0.8848]
[1759922359458,3.33382026,4499.1,4499.0,0.8848]
[1759922359650,3.89092026,4499.1,4499.0,0.8848]
[1759922360853,3.89092026,4499.1,4499.0,0.7579]
[1759922361054,3.89092026,4499.1,4499.0,0.5376]
[1759922363558,3.89092026,4499.1,4499.0,0.7534]
[1759922366453,3.12492026,4499.1,4499.0,0.8803]
[1759922366851,3.34852026,4499.1,4499.0,0.8803]
[1759922367552,3.88832026,4499.1,4499.0,0.8803]
[1759922368250,3.88832026,4499.1,4498.6,0.00205385]
[1759922368650,3.88832026,4499.1,4498.7,0.3208]
[1759922369247,3.88832026,4499.1,4498.6,0.00205385]
[1759922369448,3.55422026,4499.1,4498.7,0.3208]
[1759922369656,0.2057,4499.0,4498.9,0.2111]
[1759922369860,0.2057,4499.0,4498.9,0.5319]
[1759922369861,0.7634,4499.0,4498.9,0.5319]
[1759922370158,3.67718668,4499.0,4498.9,0.5319]
[1759922371457,3.67718668,4499.0,4498.9,0.7477]
[1759922371856,3.13738668,4499.0,4498.9,0.7477]
[1759922373154,3.34308668,4499.0,4498.9,0.7477]
[1759922373354,3.67718668,4499.0,4498.9,0.7477]
[1759922374161,3.34308668,4499.0,4498.9,0.7477]
[1759922375356,3.13738668,4499.0,4498.9,0.7477]
[1759922377465,3.67718668,4499.0,4498.9,0.7477]
[1759922378766,3.67718668,4499.0,4498.9,0.5319]
[1759922379865,3.67718668,4499.0,4498.6,0.00205385]
[1759922380062,0.7634,4498.8,4498.7,0.3208]
[1759922380566,3.66852321,4498.8,4498.7,0.5319]
[1759922381360,3.66852321,4498.8,4498.6,0.32095385]
[1759922381559,1.0112,4498.7,4498.6,0.32095385]
[1759922382066,3.85845005,4498.7,4498.6,0.32095385]
[1759922382969,3.85845005,4498.7,4498.6,0.00205385]
[1759922385258,3.85845005,4498.7,4498.6,0.53405385]
[1759922385462,3.85845005,4498.7,4498.6,0.73985385]
[1759922385863,3.52415005,4498.7,4498.6,0.73985385]
[1759922386360,3.30115005,4498.7,4498.6,0.73985385]
[1759922386568,0.00202258,4499.1,4498.6,0.73985385]
[1759922386764,0.75372258,4499.1,4499.0,0.9051]
[1759922386970,0.97672258,4499.1,4499.0,0.9051]
[1759922387165,3.81899239,4499.1,4499.0,0.9051]
[1759922388968,0.4337,4498.8,4498.7,0.3359]
[1759922389168,0.9747,4498.8,4498.7,0.3359]
[1759922389374,3.92276804,4498.8,4498.6,0.00205385]
[1759922392373,3.92276804,4498.8,4498.6,0.33795385]
[1759922392673,3.92276804,4498.8,4498.7,0.3359]
[1759922392874,3.92276804,4498.8,4498.6,0.00205385]
[1759922393270,3.92276804,4498.8,4498.6,0.33795385]
[1759922393571,3.60476804,4498.8,4498.6,0.00205385]
[1759922393774,3.38176804,4498.8,4498.7,0.5551]
[1759922393978,3.60476804,4498.8,4498.7,0.3359]
[1759922394178,0.318,4498.7,4498.6,0.00205385]
[1759922394377,0.7517,4498.7,4498.6,0.55715385]
[1759922394578,3.57556441,4498.7,4498.6,0.55715385]
[1759922395174,3.25756441,4498.7,4498.6,0.78335385]
[1759922395373,3.57556441,4498.7,4498.6,0.78335385]
[1759922396077,3.04886441,4498.7,4498.6,0.78335385]
[1759922396278,3.27186441,4498.7,4498.6,0.78335385]
[1759922396877,3.79856441,4498.7,4498.6,0.55715385]
[1759922398477,3.79856441,4498.7,4498.6,0.00205385]
[1759922398876,3.79856441,4498.7,4498.6,0.33795385]
[1759922399072,3.79856441,4498.7,4498.6,0.55715385]
[1759922400480,3.79856441,4498.7,4498.6,0.00205385]
[1759922402278,3.79856441,4498.7,4498.6,0.33795385]
[1759922402882,3.79856441,4498.7,4498.6,0.55715385]
[1759922403582,3.57556441,4498.7,4498.6,0.55715385]
[1759922403784,3.57556441,4498.7,4498.6,0.78335385]
[1759922403785,3.79856441,4498.7,4498.6,0.78335385]
[1759922403986,3.79856441,4498.7,4498.6,0.00205385]
[1759922405584,3.79856441,4498.7,4498.6,0.33795385]
[1759922407378,3.79856441,4498.7,4498.6,0.00205385]
[1759922407985,4.33890555,4498.7,4498.6,0.00205385]
[1759922414892,4.33890555,4498.7,4498.6,0.33795385]
[1759922415990,4.33890555,4498.7,4498.6,0.00205385]
[1759922423695,4.11590555,4498.7,4498.6,0.00205385]
[1759922423900,4.11590555,4498.7,4498.6,0.31475385]
[1759922424092,4.33890555,4498.7,4498.6,0.31475385]
[1759922424294,4.33890555,4498.7,4498.6,0.00205385]
[1759922425504,4.33890555,4498.7,4498.6,0.54115385]
[1759922425803,4.33890555,4498.7,4498.6,0.00205385]
[1759922432406,4.11590555,4498.7,4498.6,0.00205385]
[1759922432606,4.33890555,4498.7,4498.6,0.00205385]
[1759922432907,4.11590555,4498.7,4498.6,0.00205385]
[1759922433106,4.33890555,4498.7,4498.6,0.00205385]
[1759922433402,4.33890555,4498.7,4497.9,0.02223284]
[1759922433608,0.8987,4498.0,4497.9,0.02223284]
[1759922433906,4.56236788,4498.0,4497.9,0.02223284]
[1759922434201,4.02202674,4498.0,4497.9,0.02223284]
[1759922434399,4.02202674,4498.0,4497.9,0.02498205]
[1759922435509,4.56249576,4498.0,4497.9,0.02498205]
[1759922436413,4.56242936,4498.0,4497.9,0.02498205]
[1759922437916,4.02202674,4498.0,4497.9,0.02498205]
[1759922438115,3.89402674,4498.0,4497.9,0.56408205]
[1759922439518,3.89402674,4498.0,4497.9,0.02498205]
[1759922439713,4.02202674,4498.0,4497.9,0.02498205]
[1759922443620,4.02202674,4498.0,4497.9,0.33818205]
[1759922444419,4.02202674,4498.0,4497.9,0.02498205]
[1759922445922,4.56215879,4498.0,4497.0,0.3132]
[1759922446120,0.78,4497.1,4497.0,0.5383]
[1759922446322,1.003,4497.1,4497.0,0.7499]
[1759922446518,3.89719993,4497.1,4497.0,0.8806]
[1759922446823,3.89719993,4497.1,4497.0,0.88220884]
[1759922447023,3.56229993,4497.1,4497.0,0.88220884]
[1759922447722,3.89509993,4497.1,4497.0,0.88220884]
[1759922449123,3.89509993,4497.1,4497.0,2.6266775]
[1759922452616,3.89509993,4497.1,4497.0,2.1899775]
[1759922452822,3.89509993,4497.1,4497.0,2.0592775]
[1759922455832,3.89509993,4497.1,4497.0,2.2804775]
[1759922457031,3.89509993,4497.1,4497.0,1.7460775]
[1759922457727,3.89509993,4497.1,4497.0,2.0727775]
[1759922459828,2.89419993,4497.1,4497.0,2.6427775]
[1759922460137,0.4505,4497.1,4497.0,2.6427775]
[1759922460635,3.69152811,4497.1,4497.0,2.6427775]
[1759922460934,3.35872811,4497.1,4497.0,2.6427775]
[1759922461135,3.89872811,4497.1,4497.0,2.6427775]
[1759922462223,3.35872811,4497.1,4497.0,2.6427775]
[1759922462930,3.13572811,4497.1,4497.0,2.6427775]
[1759922463136,3.35872811,4497.1,4497.0,2.6427775]
[1759922463929,3.13572811,4497.1,4497.0,2.6427775]
[1759922464130,0.7675,4497.7,4497.6,0.4393]
[1759922464334,1.19664226,4498.8,4498.0,0.1307]
[1759922464637,3.10491685,4498.2,4498.1,0.766]
[1759922464934,0.4505,4498.2,4498.1,0.766]
[1759922465135,3.32791685,4498.2,4498.1,0.766]
[1759922465327,3.10491685,4498.2,4498.1,0.766]
[1759922465630,3.32791685,4498.2,4498.1,0.766]
[1759922465830,3.86791685,4498.2,4498.1,0.766]
[1759922468235,3.10491685,4498.2,4498.1,0.766]
[1759922468435,3.32791685,4498.2,4498.1,0.766]
[1759922468635,3.10491685,4498.2,4498.1,0.766]
[1759922468838,3.32791685,4498.2,4498.1,0.766]
[1759922469439,2.87741685,4498.2,4498.1,0.766]
[1759922469637,3.10041685,4498.2,4498.1,0.766]
[1759922469934,0.223,4498.2,4498.1,0.766]
[1759922470234,3.17966691,4498.2,4498.1,0.766]
[1759922471534,3.18416691,4498.2,4498.1,0.766]
[1759922471735,3.40716691,4498.2,4498.1,0.766]
[1759922472534,3.18416691,4498.2,4498.1,0.766]
[1759922472941,3.40716691,4498.2,4498.1,0.766]
[1759922473642,3.17966691,4498.2,4498.1,0.766]
[1759922474043,0.3328,4498.8,4498.1,0.766]
[1759922474231,0.2275,4498.6,4498.5,0.8967]
[1759922474635,3.14841868,4498.6,4498.5,0.8967]
[1759922474941,3.68841868,4498.6,4498.5,0.8967]
[1759922476139,3.91141868,4498.6,4498.5,0.8967]
[1759922476442,3.68841868,4498.6,4498.5,0.8967]
[1759922476630,3.57861868,4498.6,4498.5,0.8967]
[1759922477841,3.91331868,4498.6,4498.5,0.8967]
[1759922478231,3.91331868,4498.6,4498.5,0.766]
[1759922479336,3.91331868,4498.6,4498.5,0.8947]
[1759922480036,3.57861868,4498.6,4498.5,0.8947]
[1759922480735,3.37141868,4498.6,4498.5,0.8947]
[1759922482043,3.14841868,4498.6,4498.5,0.8947]
[1759922482238,3.37141868,4498.6,4498.5,0.8947]
[1759922483639,3.14841868,4498.6,4498.5,0.8947]
[1759922483839,3.14391868,4498.6,4498.5,0.8947]
[1759922484739,0.00202258,4499.1,4499.0,0.1287]
[1759922485046,3.36125393,4499.1,4499.0,0.8964]
[1759922485246,3.91525393,4499.1,4499.0,0.8964]
[1759922485840,3.58055393,4499.1,4499.0,0.8964]
[1759922486940,0.00202258,4499.1,4499.0,0.8964]
[1759922487144,0.05602258,4499.1,4499.0,0.8964]
[1759922487746,0.05602258,4499.1,4499.0,41.6964]
[1759922488835,0.00202258,4499.1,4499.0,41.6964]
[1759922489040,0.22502258,4499.1,4499.0,41.6964]
[1759922491545,0.14279,4500.3,4499.0,46.6964]
[1759922491840,3.4777613,4500.2,4500.1,0.215]
[1759922492041,3.8124613,4500.2,4500.1,0.5433]
[1759922492642,3.81458925,4500.2,4500.1,0.5433]
[1759922494538,3.81458925,4500.2,4499.6,0.3283]
[1759922495041,0.3347,4500.1,4499.1,0.3283]
[1759922495252,0.5465,4499.2,4499.1,0.7677]
[1759922495449,0.7695,4499.2,4499.1,0.7677]
[1759922495647,0.9888,4499.2,4499.1,0.7677]
[1759922496146,0.6541,4499.2,4499.1,0.7677]
[1759922496743,3.86424106,4499.2,4499.1,0.3283]
[1759922496942,3.86424106,4499.2,4498.5,0.1287]
[1759922496943,3.86424106,4499.2,4498.6,0.3283]
[1759922497337,0.2118,4498.8,4498.7,0.3283]
[1759922497542,0.9888,4498.8,4498.7,0.7677]
[1759922499346,3.94305247,4498.8,4498.1,0.3283]
[1759922499751,3.94305247,4498.8,4498.1,41.1283]
[1759922499951,0.2118,4498.3,4498.2,0.7677]
[1759922500151,0.4348,4498.3,4498.2,0.7677]
[1759922500441,0.6541,4498.3,4498.2,0.7677]
[1759922500751,0.9888,4498.3,4498.2,0.7677]
[1759922503248,0.2118,4498.3,4498.2,0.7677]
[1759922503450,0.8779,4498.3,4498.2,0.7677]
[1759922504857,3.71603292,4498.3,4498.2,0.7677]
[1759922511854,0.0578,4499.5,4498.3,0.3169]
[1759922512061,1.09326517,4499.4,4498.3,0.3169]
[1759922512355,3.65324592,4498.9,4498.8,0.5375]
[1759922512654,3.90592071,4498.9,4498.8,0.7451]
[1759922513054,3.68292071,4498.9,4498.8,0.7451]
[1759922513561,3.57382071,4498.9,4498.8,0.7451]
[1759922515462,3.90592071,4498.9,4498.8,0.7451]
[1759922516065,3.90592071,4498.9,4498.5,0.3169]
[1759922518864,3.90592071,4498.9,4498.0,0.1307]
[1759922519064,3.90592071,4498.9,4498.1,0.3169]
[1759922520262,3.90592071,4498.9,4498.0,0.1307]
[1759922520263,3.68292071,4498.9,4498.8,0.5375]
[1759922520460,3.90592071,4498.9,4498.8,0.7451]
[1759922520656,3.68292071,4498.9,4498.8,0.7451]
[1759922520869,3.90592071,4498.9,4498.8,0.7451]
[1759922522981,3.68292071,4498.9,4498.8,0.7451]
[1759922523278,3.90592071,4498.9,4498.8,0.7451]
[1759922523667,3.68292071,4498.9,4498.8,0.7451]
[1759922524076,3.90592071,4498.9,4498.8,0.7451]
[1759922526176,3.68292071,4498.9,4498.8,0.7451]
[1759922526367,0.3321,4499.6,4499.5,0.1322]
[1759922526570,1.51539747,4499.6,4499.5,0.8773]
[1759922526771,4.46915937,4499.6,4499.1,0.3169]
[1759922526972,3.9298619,4499.6,4499.1,0.3169]
[1759922527471,3.9298619,4499.6,4498.6,40.8]
[1759922527472,0.59712455,4499.5,4498.7,0.5375]
[1759922527678,0.7531,4498.8,4498.7,0.5375]
[1759922527873,0.9761,4498.8,4498.7,0.3169]
[1759922528071,3.8444559,4498.8,4498.0,0.1307]
[1759922528375,3.8444559,4498.8,4498.1,0.3169]
[1759922528774,0.3321,4498.1,4497.6,0.3169]
[1759922528976,0.7531,4497.7,4497.6,0.7451]
[1759922529165,0.9761,4497.7,4497.6,0.7451]
[1759922530171,3.92885291,4497.7,4497.6,0.7451]
[1759922530972,3.92885291,4497.7,4497.6,0.5375]
[1759922534477,0.7531,4497.2,4497.1,0.5375]
[1759922534676,0.9761,4497.2,4497.0,0.00160884]
[1759922534984,3.85372807,4497.2,4497.0,0.00160884]
[1759922538580,0.7527,4497.1,4497.0,0.00160884]